[Event "Early-Titled-Tuesday-Blitz-March-19-2024"]
[Site "Chess.com"]
[Date "2024.03.19"]
[Round "1"]
[White "toninhojit"]
[Black "VitaliyBernadskiy"]
[Result "0-1"]
[WhiteElo "2491"]
[BlackElo "2863"]
[TimeControl "180+1"]
[EndTime "8:08:52 PDT"]
[Termination "VitaliyBernadskiy won by checkmate"]

1. d4 {[%clk 0:02:59]} 1... d5 {[%clk 0:02:58.5]} 2. c4 {[%clk 0:02:57.5]} 2...
e6 {[%clk 0:02:57.9]} 3. Nf3 {[%clk 0:02:57.8]} 3... c5 {[%clk 0:02:57.7]} 4. e3
{[%clk 0:02:57.5]} 4... Nf6 {[%clk 0:02:56.8]} 5. a3 {[%clk 0:02:57.4]} 5... a6
{[%clk 0:02:56]} 6. Nc3 {[%clk 0:02:56.1]} 6... dxc4 {[%clk 0:02:53.3]} 7. Bxc4
{[%clk 0:02:55.3]} 7... b5 {[%clk 0:02:53.4]} 8. Bd3 {[%clk 0:02:48.7]} 8... Bb7
{[%clk 0:02:51.9]} 9. O-O {[%clk 0:02:48.7]} 9... Nbd7 {[%clk 0:02:51.8]} 10.
Qe2 {[%clk 0:02:48.4]} 10... Bd6 {[%clk 0:02:48.4]} 11. Rd1 {[%clk 0:02:45.4]}
11... cxd4 {[%clk 0:02:45.5]} 12. exd4 {[%clk 0:02:42.8]} 12... O-O {[%clk
0:02:44]} 13. Ne5 {[%clk 0:02:35.9]} 13... Qb8 {[%clk 0:02:29.2]} 14. Bf4 {[%clk
0:02:31.1]} 14... Rd8 {[%clk 0:02:28.5]} 15. Bg3 {[%clk 0:02:27.8]} 15... Nf8
{[%clk 0:02:27.7]} 16. Bh4 {[%clk 0:02:01.7]} 16... Be7 {[%clk 0:02:23.7]} 17.
Rac1 {[%clk 0:01:57.7]} 17... Ng6 {[%clk 0:02:22.4]} 18. Bg3 {[%clk 0:01:57.6]}
18... Bd6 {[%clk 0:02:22]} 19. h4 {[%clk 0:01:47.9]} 19... Ne7 {[%clk
0:02:17.8]} 20. h5 {[%clk 0:01:41.4]} 20... h6 {[%clk 0:02:03.8]} 21. Bh4 {[%clk
0:01:37.5]} 21... Nf5 {[%clk 0:01:28.9]} 22. Bxf5 {[%clk 0:01:35.4]} 22... exf5
{[%clk 0:01:28.3]} 23. Bxf6 {[%clk 0:01:35.8]} 23... gxf6 {[%clk 0:01:29.2]} 24.
Nf3 {[%clk 0:01:27.7]} 24... Bf4 {[%clk 0:01:28.4]} 25. Rb1 {[%clk 0:01:13.6]}
25... Re8 {[%clk 0:01:22]} 26. Qf1 {[%clk 0:01:05.3]} 26... Bxf3 {[%clk
0:01:19.6]} 27. gxf3 {[%clk 0:01:06.2]} 27... Kh8 {[%clk 0:01:19.8]} 28. Kh1
{[%clk 0:01:06.3]} 28... Rg8 {[%clk 0:01:17.8]} 29. Qh3 {[%clk 0:01:06.4]} 29...
Rg5 {[%clk 0:01:02.6]} 30. Rg1 {[%clk 0:01:05.5]} 30... Qb7 {[%clk 0:00:56.6]}
31. d5 {[%clk 0:01:03.6]} 31... Rag8 {[%clk 0:00:53.6]} 32. Rxg5 {[%clk
0:01:03.7]} 32... Rxg5 {[%clk 0:00:54.5]} 33. Rg1 {[%clk 0:01:04]} 33... Qc8
{[%clk 0:00:49.7]} 34. Rxg5 {[%clk 0:00:52.9]} 34... hxg5 {[%clk 0:00:44.6]} 35.
Ne4 {[%clk 0:00:43.4]} 35... Qc1+ {[%clk 0:00:42.9]} 36. Kg2 {[%clk 0:00:43.6]}
36... fxe4 {[%clk 0:00:40.9]} 37. fxe4 {[%clk 0:00:40.5]} 37... Qxb2 {[%clk
0:00:28.5]} 38. Qd7 {[%clk 0:00:37.1]} 38... Qe5 {[%clk 0:00:15.6]} 39. Qd8+
{[%clk 0:00:33.2]} 39... Kg7 {[%clk 0:00:14.8]} 40. h6+ {[%clk 0:00:33.4]} 40...
Kh7 {[%clk 0:00:15.1]} 41. Qf8 {[%clk 0:00:27.5]} 41... Qxe4+ {[%clk 0:00:14.2]}
42. Kg1 {[%clk 0:00:28.1]} 42... Qg6 {[%clk 0:00:13.9]} 43. d6 {[%clk
0:00:25.8]} 43... Bxd6 {[%clk 0:00:12.3]} 44. Qxd6 {[%clk 0:00:26.7]} 44... Kxh6
{[%clk 0:00:11.7]} 45. Qxa6 {[%clk 0:00:25.2]} 45... Qf5 {[%clk 0:00:10.5]} 46.
Qb7 {[%clk 0:00:20.1]} 46... Kg7 {[%clk 0:00:10.7]} 47. Qc6 {[%clk 0:00:17.7]}
47... Qe5 {[%clk 0:00:10.1]} 48. Qc2 {[%clk 0:00:12]} 48... f5 {[%clk
0:00:09.7]} 49. Qb3 {[%clk 0:00:12.6]} 49... g4 {[%clk 0:00:08]} 50. Kg2 {[%clk
0:00:13.2]} 50... Kg6 {[%clk 0:00:07.3]} 51. Kg1 {[%clk 0:00:11.1]} 51... Qe1+
{[%clk 0:00:06.9]} 52. Kg2 {[%clk 0:00:11]} 52... Qe4+ {[%clk 0:00:07.8]} 53.
Kg1 {[%clk 0:00:11]} 53... f4 {[%clk 0:00:06.7]} 54. Qc3 {[%clk 0:00:11.5]}
54... Qf5 {[%clk 0:00:06.6]} 55. Qh8 {[%clk 0:00:11.3]} 55... f3 {[%clk
0:00:06.4]} 56. Qg8+ {[%clk 0:00:11.6]} 56... Kf6 {[%clk 0:00:06.9]} 57. Qd8+
{[%clk 0:00:12.2]} 57... Ke5 {[%clk 0:00:06.8]} 58. Qc7+ {[%clk 0:00:12.7]}
58... Ke4 {[%clk 0:00:06.8]} 59. Qc2+ {[%clk 0:00:12.8]} 59... Ke5 {[%clk
0:00:06.3]} 60. Qc3+ {[%clk 0:00:13.2]} 60... Ke6 {[%clk 0:00:06.3]} 61. Qc8+
{[%clk 0:00:13.1]} 61... Kf6 {[%clk 0:00:06.6]} 62. Qd8+ {[%clk 0:00:13]} 62...
Kg7 {[%clk 0:00:06.5]} 63. Qd4+ {[%clk 0:00:12.6]} 63... f6 {[%clk 0:00:06.8]}
64. Qa7+ {[%clk 0:00:11.9]} 64... Kg6 {[%clk 0:00:06.7]} 65. Qa8 {[%clk
0:00:12.4]} 65... Qe5 {[%clk 0:00:05.9]} 66. Qg8+ {[%clk 0:00:11.1]} 66... Kh5
{[%clk 0:00:06]} 67. Qf7+ {[%clk 0:00:10.6]} 67... Kg5 {[%clk 0:00:06]} 68. Qg7+
{[%clk 0:00:10.7]} 68... Kf4 {[%clk 0:00:06.2]} 69. Qd7 {[%clk 0:00:07.8]} 69...
Qe1+ {[%clk 0:00:03.9]} 70. Kh2 {[%clk 0:00:04.6]} 70... Qxf2+ {[%clk
0:00:04.8]} 71. Kh1 {[%clk 0:00:05.5]} 71... Qg2# {[%clk 0:00:05.4]} 0-1

[Event "Early-Titled-Tuesday-Blitz-March-19-2024"]
[Site "Chess.com"]
[Date "2024.03.19"]
[Round "1"]
[White "Winner_7777"]
[Black "ChessFanNM"]
[Result "1-0"]
[WhiteElo "2636"]
[BlackElo "2262"]
[TimeControl "180+1"]
[EndTime "8:08:53 PDT"]
[Termination "Winner_7777 won on time"]

1. d4 {[%clk 0:03:00.9]} 1... d5 {[%clk 0:02:48.2]} 2. c4 {[%clk 0:03:01.1]}
2... e6 {[%clk 0:02:44]} 3. Nc3 {[%clk 0:03:01.6]} 3... Nf6 {[%clk 0:02:42.7]}
4. cxd5 {[%clk 0:03:01.6]} 4... exd5 {[%clk 0:02:40.4]} 5. Bg5 {[%clk
0:03:02.1]} 5... c6 {[%clk 0:02:39.1]} 6. e3 {[%clk 0:03:02.5]} 6... Bf5 {[%clk
0:02:37.7]} 7. Qf3 {[%clk 0:03:01.9]} 7... Bg6 {[%clk 0:02:37.5]} 8. Bxf6 {[%clk
0:03:01.9]} 8... Qxf6 {[%clk 0:02:38.4]} 9. Qxf6 {[%clk 0:03:02.3]} 9... gxf6
{[%clk 0:02:38.9]} 10. h4 {[%clk 0:03:02.3]} 10... h6 {[%clk 0:02:28.6]} 11. Nh3
{[%clk 0:02:52.9]} 11... Bd6 {[%clk 0:02:23.1]} 12. O-O-O {[%clk 0:02:35.3]}
12... Nd7 {[%clk 0:02:15.1]} 13. Ne2 {[%clk 0:02:26.5]} 13... b5 {[%clk
0:02:11.8]} 14. Nef4 {[%clk 0:02:21.8]} 14... Nb6 {[%clk 0:02:09]} 15. g4 {[%clk
0:02:09.3]} 15... Be4 {[%clk 0:01:59.4]} 16. Rg1 {[%clk 0:02:00.6]} 16... a5
{[%clk 0:01:58.6]} 17. Be2 {[%clk 0:01:42.1]} 17... a4 {[%clk 0:01:57]} 18. f3
{[%clk 0:01:42]} 18... Bh7 {[%clk 0:01:53.6]} 19. Bd3 {[%clk 0:01:21.8]} 19...
Bxd3 {[%clk 0:01:40.4]} 20. Rxd3 {[%clk 0:01:22.7]} 20... Kd7 {[%clk 0:01:39.7]}
21. Nh5 {[%clk 0:01:16.8]} 21... Be7 {[%clk 0:01:34.4]} 22. Ng7 {[%clk
0:01:13.6]} 22... Nc4 {[%clk 0:01:33.6]} 23. e4 {[%clk 0:00:57.3]} 23... Nd6
{[%clk 0:01:20.6]} 24. exd5 {[%clk 0:00:24.4]} 24... cxd5 {[%clk 0:01:20.1]} 25.
Nf4 {[%clk 0:00:25.1]} 25... Rhg8 {[%clk 0:01:13.2]} 26. Ngh5 {[%clk 0:00:24.6]}
26... f5 {[%clk 0:01:04.1]} 27. Nxd5 {[%clk 0:00:23.2]} 27... Bxh4 {[%clk
0:00:38.7]} 28. Nhf6+ {[%clk 0:00:22.1]} 28... Kc6 {[%clk 0:00:30.1]} 29. Ne7+
{[%clk 0:00:21.2]} 29... Kb7 {[%clk 0:00:27.1]} 30. Nexg8 {[%clk 0:00:21.8]}
30... Rd8 {[%clk 0:00:12.6]} 31. Re1 {[%clk 0:00:17]} 31... Bg5+ {[%clk
0:00:10.9]} 32. Kb1 {[%clk 0:00:17.3]} 32... Nc4 {[%clk 0:00:10.9]} 33. Re7+
{[%clk 0:00:17.4]} 33... Ka6 {[%clk 0:00:10.9]} 34. b3 {[%clk 0:00:14.7]} 34...
Na3+ {[%clk 0:00:09.1]} 35. Kb2 {[%clk 0:00:14.6]} 35... b4 {[%clk 0:00:04.5]}
36. bxa4 {[%clk 0:00:11.8]} 36... Rc8 {[%clk 0:00:04.7]} 37. Rxa3 {[%clk
0:00:07.2]} 37... Bc1+ {[%clk 0:00:03]} 38. Kb3 {[%clk 0:00:04.9]} 38... Bxa3
{[%clk 0:00:03.9]} 39. Re3 {[%clk 0:00:03.9]} 39... Rc1 {[%clk 0:00:03.2]} 40.
Ne7 {[%clk 0:00:03.9]} 40... Rb1+ {[%clk 0:00:02.8]} 41. Kc4 {[%clk 0:00:04.4]}
41... Ra1 {[%clk 0:00:03.2]} 42. Rb3 {[%clk 0:00:04.3]} 42... Rc1+ {[%clk
0:00:03.2]} 43. Kd3 {[%clk 0:00:04.1]} 43... Ra1 {[%clk 0:00:03.1]} 44. Nfd5
{[%clk 0:00:04.5]} 44... Rxa2 {[%clk 0:00:03.3]} 45. Nxb4+ {[%clk 0:00:05]}
45... Bxb4 {[%clk 0:00:03.1]} 46. Rxb4 {[%clk 0:00:05.9]} 46... Ra3+ {[%clk
0:00:03.4]} 47. Ke2 {[%clk 0:00:05.7]} 47... f4 {[%clk 0:00:03.6]} 48. Nd5
{[%clk 0:00:05.2]} 48... Ka5 {[%clk 0:00:02.9]} 49. Rb7 {[%clk 0:00:04.2]} 49...
Ra2+ {[%clk 0:00:02.6]} 50. Kf1 {[%clk 0:00:04.1]} 50... Ra1+ {[%clk 0:00:02.6]}
51. Kg2 {[%clk 0:00:04.3]} 51... Ra2+ {[%clk 0:00:02.9]} 52. Kg1 {[%clk
0:00:02.7]} 52... Ra1+ {[%clk 0:00:03.1]} 53. Kh2 {[%clk 0:00:02.8]} 53... Rf1
{[%clk 0:00:03.2]} 54. Nxf4 {[%clk 0:00:02.2]} 54... Rxf3 {[%clk 0:00:03.4]} 55.
Rxf7 {[%clk 0:00:02.9]} 55... Rf2+ {[%clk 0:00:02.9]} 56. Kg3 {[%clk 0:00:03]}
56... Rf1 {[%clk 0:00:02.7]} 57. Ra7+ {[%clk 0:00:03.1]} 57... Kb4 {[%clk
0:00:02.8]} 58. d5 {[%clk 0:00:02.9]} 58... Kc5 {[%clk 0:00:02.6]} 59. Rc7+
{[%clk 0:00:03.2]} 59... Kb6 {[%clk 0:00:02.4]} 60. Rc6+ {[%clk 0:00:03.7]}
60... Kb7 {[%clk 0:00:02.4]} 61. Rxh6 {[%clk 0:00:04.3]} 61... Rg1+ {[%clk
0:00:02.9]} 62. Kf3 {[%clk 0:00:04.5]} 62... Rf1+ {[%clk 0:00:03]} 63. Ke4
{[%clk 0:00:05.2]} 63... Re1+ {[%clk 0:00:02.9]} 64. Kf5 {[%clk 0:00:05.9]}
64... Rf1 {[%clk 0:00:02.6]} 65. d6 {[%clk 0:00:06.4]} 65... Kc6 {[%clk
0:00:02.5]} 66. g5 {[%clk 0:00:06.7]} 66... Rg1 {[%clk 0:00:02.1]} 67. Re6
{[%clk 0:00:06.8]} 67... Rf1 {[%clk 0:00:01.9]} 68. g6 {[%clk 0:00:07.3]} 1-0

[Event "Early-Titled-Tuesday-Blitz-March-19-2024"]
[Site "Chess.com"]
[Date "2024.03.19"]
[Round "1"]
[White "AnishOnYoutube"]
[Black "chess123456s"]
[Result "1-0"]
[WhiteElo "3038"]
[BlackElo "2556"]
[TimeControl "180+1"]
[EndTime "8:08:55 PDT"]
[Termination "AnishOnYoutube won by checkmate"]

1. Nf3 {[%clk 0:03:00.9]} 1... d5 {[%clk 0:02:58.9]} 2. d4 {[%clk 0:03:00.3]}
2... Nf6 {[%clk 0:02:58.9]} 3. c4 {[%clk 0:03:00.7]} 3... c6 {[%clk 0:02:59.2]}
4. Nc3 {[%clk 0:03:00.8]} 4... e6 {[%clk 0:02:59.5]} 5. e3 {[%clk 0:03:00.8]}
5... Nbd7 {[%clk 0:02:59.6]} 6. Be2 {[%clk 0:03:01.1]} 6... Bd6 {[%clk
0:02:59.6]} 7. O-O {[%clk 0:03:01.4]} 7... O-O {[%clk 0:03:00.2]} 8. b3 {[%clk
0:03:01.1]} 8... b6 {[%clk 0:03:00.7]} 9. Bb2 {[%clk 0:03:01.4]} 9... Bb7 {[%clk
0:03:01.3]} 10. Bd3 {[%clk 0:02:58.5]} 10... Rc8 {[%clk 0:02:46.6]} 11. Qe2
{[%clk 0:02:58]} 11... c5 {[%clk 0:02:24.5]} 12. cxd5 {[%clk 0:02:57.7]} 12...
exd5 {[%clk 0:02:22.6]} 13. Rfd1 {[%clk 0:02:43.8]} 13... Re8 {[%clk 0:02:09.4]}
14. Ba6 {[%clk 0:02:40.6]} 14... Bxa6 {[%clk 0:02:02.1]} 15. Qxa6 {[%clk
0:02:41.5]} 15... Bb8 {[%clk 0:01:56.9]} 16. dxc5 {[%clk 0:02:40.1]} 16... Nxc5
{[%clk 0:01:55]} 17. Qe2 {[%clk 0:02:40.2]} 17... Qd6 {[%clk 0:01:47.8]} 18. Nb5
{[%clk 0:02:35.7]} 18... Qe7 {[%clk 0:01:41.5]} 19. Rac1 {[%clk 0:02:17.5]}
19... Red8 {[%clk 0:01:29.6]} 20. h3 {[%clk 0:02:07.4]} 20... Nce4 {[%clk
0:01:09.4]} 21. Nbd4 {[%clk 0:01:55.9]} 21... Qd6 {[%clk 0:01:03.5]} 22. Nf5
{[%clk 0:01:50.9]} 22... Qd7 {[%clk 0:00:59.7]} 23. N3d4 {[%clk 0:01:49.6]}
23... Be5 {[%clk 0:00:54.6]} 24. Nh4 {[%clk 0:01:02.9]} 24... Rxc1 {[%clk
0:00:47.7]} 25. Rxc1 {[%clk 0:01:03]} 25... Rc8 {[%clk 0:00:47.5]} 26. Rd1
{[%clk 0:00:57.6]} 26... g6 {[%clk 0:00:41.1]} 27. Nhf3 {[%clk 0:00:57.1]} 27...
Bxd4 {[%clk 0:00:30.7]} 28. Bxd4 {[%clk 0:00:53.2]} 28... Nc3 {[%clk 0:00:28.7]}
29. Bxc3 {[%clk 0:00:52.6]} 29... Rxc3 {[%clk 0:00:29.6]} 30. Nd4 {[%clk
0:00:50.7]} 30... Kg7 {[%clk 0:00:28.1]} 31. Qb2 {[%clk 0:00:49.1]} 31... Rc8
{[%clk 0:00:27.3]} 32. Ne2 {[%clk 0:00:46.4]} 32... Qd6 {[%clk 0:00:25.5]} 33.
Nf4 {[%clk 0:00:45.2]} 33... Kg8 {[%clk 0:00:19.9]} 34. g3 {[%clk 0:00:43.1]}
34... Rd8 {[%clk 0:00:20.3]} 35. Qd4 {[%clk 0:00:42]} 35... h5 {[%clk
0:00:20.6]} 36. Kg2 {[%clk 0:00:41.7]} 36... Qc6 {[%clk 0:00:21.1]} 37. Rd3
{[%clk 0:00:40.8]} 37... Qd6 {[%clk 0:00:21.1]} 38. Rc3 {[%clk 0:00:40.6]} 38...
Ne4 {[%clk 0:00:20.5]} 39. Rc1 {[%clk 0:00:39.7]} 39... Nc5 {[%clk 0:00:20.3]}
40. Rd1 {[%clk 0:00:37.8]} 40... Ne6 {[%clk 0:00:20.3]} 41. Nxe6 {[%clk
0:00:34.9]} 41... Qxe6 {[%clk 0:00:21.2]} 42. e4 {[%clk 0:00:34.2]} 42... Qd6
{[%clk 0:00:18.4]} 43. exd5 {[%clk 0:00:34.4]} 43... Re8 {[%clk 0:00:19]} 44.
Rc1 {[%clk 0:00:32.1]} 44... Rd8 {[%clk 0:00:17.8]} 45. Rd1 {[%clk 0:00:29.1]}
45... Re8 {[%clk 0:00:18.4]} 46. Rd2 {[%clk 0:00:29.8]} 46... Re7 {[%clk
0:00:17.9]} 47. h4 {[%clk 0:00:24.7]} 47... Rd7 {[%clk 0:00:17.8]} 48. Kf3
{[%clk 0:00:24.6]} 48... Rd8 {[%clk 0:00:18.1]} 49. Qf4 {[%clk 0:00:24.1]} 49...
Qc5 {[%clk 0:00:16.8]} 50. Qe5 {[%clk 0:00:22.9]} 50... Qc1 {[%clk 0:00:14.3]}
51. Qd4 {[%clk 0:00:17.5]} 51... Qh1+ {[%clk 0:00:13.3]} 52. Kf4 {[%clk
0:00:18.1]} 52... Qe1 {[%clk 0:00:13.3]} 53. d6 {[%clk 0:00:17.3]} 53... Qe6
{[%clk 0:00:13.1]} 54. d7 {[%clk 0:00:16.4]} 54... f6 {[%clk 0:00:11.9]} 55. Kf3
{[%clk 0:00:14.9]} 55... Kf7 {[%clk 0:00:12.2]} 56. Kg2 {[%clk 0:00:14]} 56...
Ke7 {[%clk 0:00:11.5]} 57. Qb4+ {[%clk 0:00:14.4]} 57... Kf7 {[%clk 0:00:11.5]}
58. Rd6 {[%clk 0:00:15.1]} 58... Qe7 {[%clk 0:00:10.7]} 59. Qc4+ {[%clk
0:00:15.3]} 59... Kg7 {[%clk 0:00:11.2]} 60. Qd5 {[%clk 0:00:15.4]} 60... Qf8
{[%clk 0:00:07.6]} 61. b4 {[%clk 0:00:13.6]} 61... Qe7 {[%clk 0:00:07.7]} 62. a4
{[%clk 0:00:14.1]} 62... Qf7 {[%clk 0:00:07.9]} 63. Qd4 {[%clk 0:00:13.8]} 63...
Qe7 {[%clk 0:00:08.3]} 64. a5 {[%clk 0:00:14.4]} 64... bxa5 {[%clk 0:00:08.5]}
65. bxa5 {[%clk 0:00:15.3]} 65... Kf7 {[%clk 0:00:08.4]} 66. Qd5+ {[%clk
0:00:14.7]} 66... Kg7 {[%clk 0:00:08.8]} 67. a6 {[%clk 0:00:15]} 67... Qf7
{[%clk 0:00:07.4]} 68. Qd4 {[%clk 0:00:14.4]} 68... Qe7 {[%clk 0:00:07.7]} 69.
Kf1 {[%clk 0:00:14.1]} 69... Qf7 {[%clk 0:00:07.6]} 70. Rd5 {[%clk 0:00:14]}
70... Qe6 {[%clk 0:00:07.7]} 71. Rd6 {[%clk 0:00:12.6]} 71... Qe7 {[%clk
0:00:07.6]} 72. Kg2 {[%clk 0:00:13.1]} 72... Qf7 {[%clk 0:00:07.9]} 73. Qxa7
{[%clk 0:00:13.3]} 73... Qc4 {[%clk 0:00:07.3]} 74. Qd4 {[%clk 0:00:13.1]} 74...
Qb5 {[%clk 0:00:06.2]} 75. Qxf6+ {[%clk 0:00:12.4]} 75... Kh7 {[%clk 0:00:06.8]}
76. Qxg6+ {[%clk 0:00:12.1]} 76... Kh8 {[%clk 0:00:07.1]} 77. Qh6+ {[%clk
0:00:12.3]} 77... Kg8 {[%clk 0:00:07.6]} 78. Rg6+ {[%clk 0:00:12.9]} 78... Kf7
{[%clk 0:00:08.3]} 79. Qg7# {[%clk 0:00:13.3]} 1-0

[Event "Early-Titled-Tuesday-Blitz-March-19-2024"]
[Site "Chess.com"]
[Date "2024.03.19"]
[Round "1"]
[White "Preobrazhenska_D2011"]
[Black "mbojan"]
[Result "1-0"]
[WhiteElo "2460"]
[BlackElo "2793"]
[TimeControl "180+1"]
[EndTime "8:08:58 PDT"]
[Termination "Preobrazhenska_D2011 won by checkmate"]

1. e4 {[%clk 0:02:54.2]} 1... a6 {[%clk 0:02:59.3]} 2. d4 {[%clk 0:02:52.6]}
2... e6 {[%clk 0:02:59.8]} 3. Nf3 {[%clk 0:02:50.1]} 3... d5 {[%clk 0:02:59.8]}
4. e5 {[%clk 0:02:49.8]} 4... c5 {[%clk 0:02:59.9]} 5. c3 {[%clk 0:02:49.6]}
5... Bd7 {[%clk 0:03:00.5]} 6. Bd3 {[%clk 0:02:45.8]} 6... cxd4 {[%clk
0:03:00.6]} 7. cxd4 {[%clk 0:02:45.4]} 7... Bb5 {[%clk 0:03:01.2]} 8. O-O {[%clk
0:02:40.7]} 8... Nc6 {[%clk 0:03:01.4]} 9. Nc3 {[%clk 0:02:39.7]} 9... Bxd3
{[%clk 0:03:01.4]} 10. Qxd3 {[%clk 0:02:40.6]} 10... Nge7 {[%clk 0:03:02]} 11.
a3 {[%clk 0:02:36.7]} 11... Nf5 {[%clk 0:03:02.2]} 12. b4 {[%clk 0:02:29.5]}
12... Be7 {[%clk 0:03:01.5]} 13. Bb2 {[%clk 0:02:25.9]} 13... O-O {[%clk
0:03:00.6]} 14. Rac1 {[%clk 0:02:24.3]} 14... Rc8 {[%clk 0:03:00.3]} 15. Ne2
{[%clk 0:02:20]} 15... Nh4 {[%clk 0:02:45.8]} 16. Nxh4 {[%clk 0:02:18.6]} 16...
Bxh4 {[%clk 0:02:46.7]} 17. f4 {[%clk 0:02:06]} 17... f5 {[%clk 0:02:42.4]} 18.
exf6 {[%clk 0:01:59.3]} 18... Bxf6 {[%clk 0:02:42.2]} 19. f5 {[%clk 0:01:54.1]}
19... Qd7 {[%clk 0:02:23.9]} 20. fxe6 {[%clk 0:01:49.4]} 20... Qxe6 {[%clk
0:02:24.8]} 21. Nf4 {[%clk 0:01:47.8]} 21... Qe4 {[%clk 0:02:24.6]} 22. Qxe4
{[%clk 0:01:37.9]} 22... dxe4 {[%clk 0:02:25.5]} 23. Nd5 {[%clk 0:01:13]} 23...
Bg5 {[%clk 0:01:57.6]} 24. Rcd1 {[%clk 0:01:05.4]} 24... Rcd8 {[%clk 0:01:50.7]}
25. Rxf8+ {[%clk 0:00:58.1]} 25... Kxf8 {[%clk 0:01:51.3]} 26. Nc7 {[%clk
0:00:51.6]} 26... Be3+ {[%clk 0:01:20.6]} 27. Kf1 {[%clk 0:00:44.8]} 27... Rd7
{[%clk 0:01:20.3]} 28. Ke2 {[%clk 0:00:26.5]} 28... Bh6 {[%clk 0:00:34.4]} 29.
Ne6+ {[%clk 0:00:22.9]} 29... Kf7 {[%clk 0:00:34.8]} 30. d5 {[%clk 0:00:22.5]}
30... Ne7 {[%clk 0:00:35.3]} 31. Rf1+ {[%clk 0:00:21.1]} 31... Nf5 {[%clk
0:00:20.2]} 32. Rxf5+ {[%clk 0:00:20.8]} 32... Ke7 {[%clk 0:00:21.1]} 33. Bxg7
{[%clk 0:00:15.4]} 33... Bxg7 {[%clk 0:00:18.1]} 34. Nxg7 {[%clk 0:00:16.3]}
34... Rc7 {[%clk 0:00:18.8]} 35. Ke3 {[%clk 0:00:10.3]} 35... Rc2 {[%clk
0:00:17.6]} 36. Rf2 {[%clk 0:00:09.2]} 36... Rc3+ {[%clk 0:00:16.9]} 37. Kxe4
{[%clk 0:00:09.9]} 37... Rxa3 {[%clk 0:00:17.7]} 38. Nf5+ {[%clk 0:00:10.3]}
38... Kd7 {[%clk 0:00:18.4]} 39. Nd4 {[%clk 0:00:10]} 39... Ke7 {[%clk
0:00:16.6]} 40. Re2 {[%clk 0:00:08]} 40... Ra4 {[%clk 0:00:15.4]} 41. Nf5+
{[%clk 0:00:06.3]} 41... Kd7 {[%clk 0:00:15.8]} 42. Rb2 {[%clk 0:00:05.7]} 42...
a5 {[%clk 0:00:15.8]} 43. Ke5 {[%clk 0:00:06.2]} 43... axb4 {[%clk 0:00:15.6]}
44. Nd6 {[%clk 0:00:06.6]} 44... b3 {[%clk 0:00:10.9]} 45. Nxb7 {[%clk
0:00:05.5]} 45... Ra2 {[%clk 0:00:11.6]} 46. Nc5+ {[%clk 0:00:05.3]} 46... Kd8
{[%clk 0:00:12.2]} 47. Rxb3 {[%clk 0:00:05]} 47... Rxg2 {[%clk 0:00:13]} 48.
Rb8+ {[%clk 0:00:04.7]} 48... Kc7 {[%clk 0:00:13.1]} 49. Na6+ {[%clk 0:00:04.9]}
49... Kd7 {[%clk 0:00:13.2]} 50. Rb7+ {[%clk 0:00:05.5]} 50... Kc8 {[%clk
0:00:13.8]} 51. Rc7+ {[%clk 0:00:05.9]} 51... Kd8 {[%clk 0:00:13.8]} 52. d6
{[%clk 0:00:04.7]} 52... Rxh2 {[%clk 0:00:13.5]} 53. Ra7 {[%clk 0:00:04.7]}
53... Re2+ {[%clk 0:00:13.8]} 54. Kd4 {[%clk 0:00:05.1]} 54... Rd2+ {[%clk
0:00:14.2]} 55. Kc5 {[%clk 0:00:05.7]} 55... Rc2+ {[%clk 0:00:14.4]} 56. Kb5
{[%clk 0:00:06.1]} 56... Rb2+ {[%clk 0:00:08.5]} 57. Kc6 {[%clk 0:00:06.6]}
57... Ke8 {[%clk 0:00:02.8]} 58. Ra8+ {[%clk 0:00:06.7]} 58... Kf7 {[%clk
0:00:03.3]} 59. d7 {[%clk 0:00:06.8]} 59... Rd2 {[%clk 0:00:03.9]} 60. d8=Q
{[%clk 0:00:06.4]} 60... Rxd8 {[%clk 0:00:04.8]} 61. Rxd8 {[%clk 0:00:06.8]}
61... h5 {[%clk 0:00:05.7]} 62. Rd7+ {[%clk 0:00:07.2]} 62... Kg6 {[%clk
0:00:06.1]} 63. Kd5 {[%clk 0:00:06.7]} 63... h4 {[%clk 0:00:06.6]} 64. Ke4
{[%clk 0:00:07.2]} 64... Kg5 {[%clk 0:00:07.3]} 65. Kf3 {[%clk 0:00:07.6]} 65...
h3 {[%clk 0:00:08.1]} 66. Rd2 {[%clk 0:00:08]} 66... h2 {[%clk 0:00:09]} 67.
Rxh2 {[%clk 0:00:08.3]} 67... Kf5 {[%clk 0:00:09.7]} 68. Rg2 {[%clk 0:00:08.4]}
68... Ke5 {[%clk 0:00:10.6]} 69. Rg4 {[%clk 0:00:08.9]} 69... Kd5 {[%clk
0:00:11.1]} 70. Re4 {[%clk 0:00:09.4]} 70... Kd6 {[%clk 0:00:11.5]} 71. Nb4
{[%clk 0:00:09.6]} 71... Kc5 {[%clk 0:00:12]} 72. Ke3 {[%clk 0:00:09.8]} 72...
Kd6 {[%clk 0:00:12.9]} 73. Kd4 {[%clk 0:00:10]} 73... Kd7 {[%clk 0:00:13]} 74.
Kd5 {[%clk 0:00:10.1]} 74... Kc7 {[%clk 0:00:13.4]} 75. Re6 {[%clk 0:00:10.4]}
75... Kd7 {[%clk 0:00:14.3]} 76. Rc6 {[%clk 0:00:10.6]} 76... Ke7 {[%clk
0:00:14.8]} 77. Nd3 {[%clk 0:00:10.8]} 77... Kf7 {[%clk 0:00:15.7]} 78. Ne5+
{[%clk 0:00:11.1]} 78... Ke7 {[%clk 0:00:16.6]} 79. Re6+ {[%clk 0:00:11.3]}
79... Kd8 {[%clk 0:00:17.5]} 80. Kd6 {[%clk 0:00:11.2]} 80... Kc8 {[%clk
0:00:18.4]} 81. Kc6 {[%clk 0:00:10.8]} 81... Kb8 {[%clk 0:00:19.3]} 82. Rh6
{[%clk 0:00:11.1]} 82... Kc8 {[%clk 0:00:20.2]} 83. Rh8# {[%clk 0:00:11.4]} 1-0